bitfinex/quotes_BTCUSD_20250313
["timestamp","ask_amount","ask_price","bid_price","bid_amount"]
[1741851608778,0.31176737,83441.0,83436.0,0.251687]
[1741851608980,0.31176737,83441.0,83440.0,0.251677]
[1741851609208,0.000339,83458.0,83445.0,0.0764]
[1741851609209,0.251649,83450.0,83445.0,0.0764]
[1741851609413,0.23967,83448.0,83445.0,0.0764]
[1741851609975,0.311983,83449.0,83445.0,0.0764]
[1741851610336,0.56364696,83449.0,83445.0,0.0764]
[1741851610746,0.56364596,83449.0,83445.0,0.0764]
[1741851611301,0.56364596,83449.0,83445.0,0.0784]
[1741851611497,0.31199396,83449.0,83445.0,0.318078]
[1741851611721,0.01199396,83449.0,83445.0,0.330061]
[1741851611884,0.3,83449.0,83445.0,0.091383]
[1741851612091,0.012321,83458.0,83448.0,0.011983]
[1741851612296,0.3,83455.0,83450.0,0.239664]
[1741851612737,0.3,83455.0,83450.0,0.251647]
[1741851613177,0.3,83455.0,83452.0,0.011982]
[1741851613517,0.251632,83455.0,83448.0,0.012983]
[1741851613721,0.3,83452.0,83448.0,0.012983]
[1741851613920,0.3,83452.0,83450.0,0.001]
[1741851614364,0.3,83452.0,83447.0,0.251653]
[1741851614884,0.01210603,83453.0,83449.0,0.239666]
[1741851614885,0.00012403,83453.0,83449.0,0.239666]
[1741851615035,0.00012403,83453.0,83449.0,0.251649]
[1741851615215,0.00012403,83453.0,83450.0,0.002]
[1741851615422,0.00012403,83453.0,83450.0,0.001]
[1741851615882,0.311983,83451.0,83450.0,0.001]
[1741851616084,0.00012403,83453.0,83452.0,0.25164]
[1741851616457,0.00012403,83453.0,83447.0,0.251653]
[1741851616458,0.011983,83448.0,83444.0,0.0805]
[1741851616685,0.251658,83446.0,83444.0,0.0805]
[1741851616859,0.251655,83448.0,83444.0,0.0805]
[1741851617058,0.251644,83451.0,83447.0,0.001]
[1741851617300,0.011983,83448.0,83444.0,0.0805]
[1741851617499,0.011983,83450.0,83445.0,0.25166]
[1741851617910,0.011982,83452.0,83446.0,0.251656]
[1741851618262,0.011982,83452.0,83447.0,0.001]
[1741851618464,0.011983,83451.0,83446.0,0.251656]
[1741851618672,0.251647,83451.0,83446.0,0.011983]
[1741851618870,0.011983,83451.0,83446.0,0.011983]
[1741851619058,0.251643,83452.0,83446.0,0.011983]
[1741851619260,0.00012403,83453.0,83448.0,0.251652]
[1741851619706,0.00012403,83453.0,83450.0,0.251646]
[1741851620054,0.00012403,83453.0,83452.0,0.239658]
[1741851620358,0.00012403,83453.0,83451.0,0.011983]
[1741851620992,0.00012403,83453.0,83452.0,0.011982]
[1741851621193,0.00012403,83453.0,83452.0,0.095082]
[1741851621393,0.00012403,83453.0,83452.0,0.096082]
[1741851621592,0.01210603,83453.0,83452.0,0.001]
[1741851622009,0.00012403,83453.0,83452.0,0.366058]
[1741851622213,0.00012403,83453.0,83452.0,0.37804]
[1741851622412,0.00012403,83453.0,83452.0,0.002]
[1741851622619,0.00046323,83453.0,83452.0,0.002]
[1741851623227,0.00046323,83453.0,83452.0,0.25264]
[1741851623654,0.00046323,83453.0,83452.0,0.25564]
[1741851624077,0.00046323,83453.0,83452.0,0.003]
[1741851624477,0.01244523,83453.0,83452.0,0.005]
[1741851626539,0.01244523,83453.0,83452.0,0.002]
[1741851626968,0.01244523,83453.0,83452.0,0.005]
[1741851627476,0.37318608,83453.0,83452.0,0.003]
[1741851627695,0.45378608,83453.0,83452.0,0.005]
[1741851627918,0.47741864,83453.0,83452.0,0.003]
[1741851628121,0.25172,83426.0,83420.0,0.330236]
[1741851628354,0.25172,83426.0,83420.0,0.0785]
[1741851628552,0.239739,83424.0,83420.0,0.0785]
[1741851628664,0.251725,83424.0,83420.0,0.0785]
[1741851628878,0.011987,83421.0,83420.0,0.0785]
[1741851629442,0.239742,83423.0,83420.0,0.0785]
[1741851629669,0.251729,83423.0,83420.0,0.0785]
[1741851629979,0.011986,83424.0,83420.0,0.0785]
[1741851630333,0.001,83421.0,83420.0,0.094487]
[1741851630536,0.001,83421.0,83420.0,0.09568565]
[1741851630735,0.239681,83444.0,83435.0,0.011985]
[1741851630962,0.011984,83440.0,83436.0,0.00119837]
[1741851631212,0.251685,83438.0,83432.0,0.250699]
[1741851632110,0.251685,83438.0,83433.0,0.010985]
[1741851632268,0.25168,83439.0,83434.0,0.251692]
[1741851632790,0.011984,83439.0,83435.0,0.002]
[1741851633190,0.011984,83439.0,83434.0,0.251692]
[1741851633674,0.011984,83439.0,83434.0,0.254692]
[1741851633875,0.011984,83439.0,83434.0,0.25300801]
[1741851634099,0.011984,83440.0,83435.0,0.011985]
[1741851634274,0.25168,83439.0,83434.0,0.003]
[1741851634494,0.011985,83435.0,83434.0,0.003]
[1741851635103,0.011985,83435.0,83434.0,0.005]
[1741851635465,0.011985,83435.0,83434.0,0.003]
[1741851635664,0.251695,83434.0,83433.0,0.0001695]
[1741851636754,0.551695,83434.0,83433.0,0.0001695]
[1741851636927,0.551695,83434.0,83433.0,0.0041695]
[1741851637655,0.551695,83434.0,83433.0,0.0081695]
[1741851638426,0.551695,83434.0,83433.0,0.0041695]
[1741851639245,0.551695,83434.0,83433.0,0.0001695]
[1741851639470,0.552695,83434.0,83433.0,0.0001695]
[1741851639670,0.553695,83434.0,83433.0,0.0001695]
[1741851641209,0.552695,83434.0,83433.0,0.0001695]
[1741851641562,0.551695,83434.0,83433.0,0.0001695]
[1741851645757,0.3,83434.0,83433.0,0.0001695]
[1741851646158,0.53971,83434.0,83433.0,0.0001695]
[1741851646545,0.251682,83439.0,83433.0,0.0001695]
[1741851646744,0.3,83438.0,83433.0,0.0001695]
[1741851646955,0.3,83436.0,83433.0,0.0121545]
[1741851647538,0.539706,83436.0,83433.0,0.0001695]
[1741851647942,0.23971,83435.0,83433.0,0.0001695]
[1741851648241,0.551691,83436.0,83433.0,0.0001695]
[1741851650088,0.551691,83436.0,83433.0,0.0011695]
[1741851650884,0.011985,83437.0,83433.0,0.0011695]
[1741851651683,0.239704,83436.0,83433.0,0.0011695]
[1741851651898,0.251695,83434.0,83433.0,0.0011695]
[1741851653619,0.551695,83434.0,83433.0,0.0011695]
[1741851654002,0.551695,83434.0,83433.0,0.0001695]
[1741851654206,0.551695,83434.0,83433.0,0.0011695]
[1741851654582,0.551695,83434.0,83433.0,0.0001695]
[1741851654961,0.552695,83434.0,83433.0,0.0001695]
[1741851655969,0.553695,83434.0,83433.0,0.0001695]
[1741851659044,0.552695,83434.0,83433.0,0.0001695]
[1741851659254,0.301339,83434.0,83433.0,0.0001695]
[1741851659407,0.300339,83434.0,83433.0,0.0001695]
[1741851660038,0.000339,83434.0,83433.0,0.0572545]
[1741851660238,0.000339,83434.0,83433.0,0.05845279]
[1741851660435,0.001339,83434.0,83433.0,0.05845279]
[1741851660635,0.001339,83434.0,83433.0,0.13815279]
[1741851660848,0.000339,83434.0,83433.0,0.13815279]
[1741851661290,0.000339,83434.0,83433.0,0.14015279]
[1741851661697,0.000339,83434.0,83433.0,0.13815279]
[1741851661905,0.000339,83434.0,83433.0,0.14996682]
[1741851662311,0.001339,83434.0,83433.0,0.15496682]
[1741851663296,0.002339,83434.0,83433.0,0.15896682]
[1741851668323,0.002339,83434.0,83433.0,0.14715279]
[1741851669070,0.002339,83434.0,83433.0,0.0211545]
[1741851669927,0.001339,83434.0,83433.0,0.0161545]
[1741851670144,0.000339,83434.0,83433.0,0.0121545]
[1741851670441,0.000339,83434.0,83433.0,0.0171545]
[1741851670584,0.000339,83434.0,83433.0,0.0211545]
[1741851670780,0.000339,83434.0,83433.0,0.0091695]
[1741851670985,0.012324,83434.0,83433.0,0.0091695]
[1741851673372,0.000339,83434.0,83433.0,0.0091695]
[1741851674585,0.000339,83434.0,83433.0,0.2488825]
[1741851674791,0.000339,83434.0,83433.0,0.3424675]
[1741851674998,0.000339,83434.0,83433.0,0.2608675]
[1741851678845,0.000339,83434.0,83433.0,0.0091695]
[1741851678846,0.252034,83434.0,83433.0,0.0091695]
[1741851679188,0.000339,83434.0,83433.0,0.0091695]
[1741851679518,0.012324,83434.0,83433.0,0.0091695]
[1741851682228,0.012324,83434.0,83433.0,0.0041695]
[1741851682434,0.012324,83434.0,83433.0,0.0051695]
[1741851683047,0.012324,83434.0,83433.0,0.0041695]
[1741851683382,0.012324,83434.0,83433.0,0.0061695]
[1741851683787,0.012324,83434.0,83433.0,0.0021695]
[1741851683987,0.012324,83434.0,83433.0,0.0031695]
[1741851684743,0.312324,83434.0,83433.0,0.0031695]
[1741851684943,0.312324,83434.0,83433.0,0.0021695]
[1741851684944,0.387724,83434.0,83433.0,0.0021695]
[1741851685331,0.387724,83434.0,83433.0,0.0031695]
[1741851685890,0.387724,83434.0,83433.0,0.0011695]
[1741851686092,0.387724,83434.0,83433.0,0.0021695]
[1741851686848,0.387724,83434.0,83433.0,0.0001695]
[1741851687055,0.389724,83434.0,83433.0,0.0001695]
[1741851687249,0.391724,83434.0,83433.0,0.0001695]
[1741851687674,0.41577514,83434.0,83433.0,0.0001695]
[1741851694212,0.551764,83411.0,83410.0,0.0001696]
[1741851695467,0.551764,83411.0,83410.0,0.00024915]
[1741851697093,0.552764,83411.0,83410.0,0.00024915]
[1741851698539,0.301,83411.0,83410.0,0.00024915]
[1741851698937,0.312988,83411.0,83410.0,0.00024915]
[1741851699277,0.301,83411.0,83410.0,0.00024915]
[1741851699492,0.001,83411.0,83410.0,0.25201615]
[1741851699895,0.3,83416.0,83410.0,0.25201615]
[1741851699896,0.311988,83416.0,83410.0,0.25201615]
[1741851700097,0.3,83416.0,83413.0,0.011988]
[1741851700298,0.3,83416.0,83413.0,0.010988]
[1741851700543,0.3,83416.0,83415.0,0.251753]
[1741851700873,0.55174,83420.0,83413.0,0.250755]
[1741851701088,0.011987,83418.0,83413.0,0.250755]
[1741851701240,0.55174,83420.0,83414.0,0.251753]
[1741851701680,0.3,83420.0,83419.0,0.25174]
[1741851701885,0.150986,83426.0,83419.0,0.25174]
[1741851701886,0.011986,83425.0,83419.0,0.25174]
[1741851702215,0.011986,83430.0,83421.0,0.011987]
[1741851702420,0.251716,83427.0,83421.0,0.011987]
[1741851702990,0.3,83428.0,83421.0,0.011987]
[1741851703167,0.3,83428.0,83422.0,0.250731]
[1741851703363,0.002,83425.0,83424.0,0.251725]
[1741851703770,0.239739,83424.0,83419.0,0.23975]
[1741851703988,0.014986,83427.0,83421.0,0.011987]
[1741851704193,0.011986,83427.0,83421.0,0.011987]
[1741851704393,0.3,83426.0,83419.0,0.251737]
[1741851705174,0.551721,83426.0,83419.0,0.252737]
[1741851705584,0.011987,83420.0,83419.0,0.001]
[1741851706417,0.011987,83420.0,83413.0,0.239768]
[1741851706418,0.011987,83420.0,83414.0,0.239765]
[1741851706594,0.239753,83419.0,83414.0,0.239765]
[1741851706995,0.011987,83423.0,83415.0,0.25175]
[1741851707249,0.3,83426.0,83421.0,0.011987]
[1741851707377,0.3,83426.0,83424.0,0.239736]
[1741851707560,0.3,83426.0,83422.0,0.239744]
[1741851707966,0.011986,83425.0,83418.0,0.239755]
[1741851708169,0.011987,83422.0,83419.0,0.002]
[1741851708439,0.23975,83420.0,83419.0,0.002]
[1741851708647,0.251732,83422.0,83419.0,0.002]
[1741851708865,0.3,83426.0,83420.0,0.011987]
[1741851709159,0.239749,83421.0,83419.0,0.002]
[1741851709394,0.251736,83421.0,83419.0,0.002]
[1741851709866,0.251726,83424.0,83419.0,0.241751]
[1741851710096,0.551719,83427.0,83419.0,0.013987]
[1741851710301,0.251721,83426.0,83421.0,0.251732]
[1741851710833,0.3,83427.0,83420.0,0.239748]
[1741851711057,0.011986,83425.0,83420.0,0.251735]
[1741851711482,0.239739,83424.0,83418.0,0.239756]
[1741851711694,0.239739,83424.0,83418.0,0.251743]
[1741851712399,0.239733,83426.0,83421.0,0.239747]
[1741851712607,0.311986,83429.0,83425.0,0.239735]
[1741851712781,0.011986,83428.0,83424.0,0.239739]
[1741851712989,0.3,83429.0,83424.0,0.251725]
[1741851713370,0.3,83429.0,83424.0,0.011986]
[1741851713973,0.3,83432.0,83425.0,0.251719]
[1741851714184,0.551703,83432.0,83425.0,0.251719]
[1741851714377,0.001,83429.0,83425.0,0.251719]
[1741851714586,0.001,83429.0,83423.0,0.011987]
[1741851714587,0.301,83429.0,83423.0,0.011987]
[1741851714776,0.301,83429.0,83423.0,0.251726]
[1741851715122,0.540727,83429.0,83423.0,0.011987]
[1741851715924,0.551713,83429.0,83423.0,0.011987]
[1741851716891,0.552713,83429.0,83423.0,0.011987]
[1741851718180,0.011986,83428.0,83422.0,0.251731]
[1741851719066,0.3,83426.0,83422.0,0.239744]
[1741851719304,0.3,83426.0,83421.0,0.011987]
[1741851720275,0.551721,83426.0,83420.0,0.23975]
[1741851720452,0.011986,83425.0,83419.0,0.251738]
[1741851720655,0.311986,83426.0,83420.0,0.011987]
[1741851721015,0.551721,83426.0,83420.0,0.251735]
[1741851721670,0.01878087,83425.0,83420.0,0.251735]
[1741851723203,0.01878087,83425.0,83420.0,0.252735]
[1741851725283,0.01878087,83425.0,83421.0,0.251732]
[1741851725512,0.01878087,83425.0,83422.0,0.33172766]
[1741851725741,0.01878087,83425.0,83424.0,0.011986]
[1741851725963,0.0003388,83429.0,83428.0,0.011986]
[1741851726717,0.0003388,83429.0,83428.0,0.251713]
[1741851727417,0.0003388,83429.0,83428.0,0.253713]
[1741851727826,0.0003388,83429.0,83428.0,0.254713]
[1741851728060,0.0003388,83429.0,83428.0,0.333613]
[1741851728289,0.0003388,83429.0,83428.0,0.472533]
[1741851728763,0.0003388,83429.0,83428.0,0.522133]
[1741851729219,0.0003388,83429.0,83428.0,0.520133]
[1741851729444,8e-07,83429.0,83428.0,0.520133]
[1741851729670,8e-07,83429.0,83428.0,0.521133]
[1741851730117,8e-07,83429.0,83428.0,0.520133]
[1741851730391,8e-07,83429.0,83428.0,0.524133]
[1741851730602,8e-07,83429.0,83428.0,0.525133]
[1741851730854,8e-07,83429.0,83428.0,0.520133]
[1741851731083,8e-07,83429.0,83428.0,0.519133]
[1741851731318,0.0010008,83429.0,83428.0,0.524133]
[1741851731778,8e-07,83429.0,83428.0,0.524133]
[1741851731998,8e-07,83434.0,83433.0,0.251698]
[1741851732233,0.000339,83442.0,83441.0,0.251674]
[1741851732451,0.000339,83442.0,83441.0,0.328074]
[1741851732657,0.000339,83442.0,83441.0,0.377174]
[1741851732861,0.000339,83458.0,83452.0,0.32934]
[1741851733057,0.000339,83458.0,83452.0,0.46826]
[1741851733505,0.00038055,83453.0,83452.0,0.46826]
[1741851734489,5.5e-07,83453.0,83452.0,0.46826]
[1741851734698,5.5e-07,83453.0,83452.0,0.51426]
[1741851735351,5.5e-07,83453.0,83452.0,0.51926]
[1741851735569,5.5e-07,83453.0,83452.0,2.01926]
[1741851735753,5.5e-07,83458.0,83457.0,0.326626]
[1741851737668,5.5e-07,83458.0,83457.0,0.332626]
[1741851739253,5.5e-07,83458.0,83457.0,0.338626]
[1741851740665,5.5e-07,83458.0,83457.0,1.099546]
[1741851743295,5.5e-07,83458.0,83457.0,1.0997153]
[1741851745516,5.5e-07,83458.0,83457.0,2.5997153]
[1741851748501,5.5e-07,83458.0,83457.0,1.0997153]
[1741851750736,5.5e-07,83458.0,83457.0,1.24465749]
[1741851751893,5.5e-07,83458.0,83457.0,2.73865749]
[1741851752353,5.5e-07,83458.0,83457.0,2.74465749]
[1741851752756,5.5e-07,83458.0,83457.0,2.73865749]
[1741851753090,5.5e-07,83458.0,83457.0,2.74465749]
[1741851753654,5.5e-07,83458.0,83457.0,2.5937153]
[1741851754003,5.5e-07,83458.0,83457.0,2.5997153]
[1741851758482,5.5e-07,83458.0,83457.0,2.7385153]
[1741851762912,5.5e-07,83458.0,83457.0,2.7384753]
[1741851767399,5.5e-07,83458.0,83457.0,2.77594872]
[1741851775945,5.5e-07,83458.0,83457.0,2.96043176]
[1741851776179,0.0003392,83478.0,83477.0,0.011979]
[1741851776496,0.0003392,83478.0,83477.0,0.39148272]
[1741851776697,0.0003392,83478.0,83477.0,0.390285]
[1741851776919,0.0003392,83478.0,83477.0,1.890285]
[1741851777521,0.0003392,83478.0,83477.0,0.390285]
[1741851777722,0.0003392,83478.0,83477.0,0.393285]
[1741851778095,0.0003392,83478.0,83477.0,0.397285]
[1741851780105,0.0003392,83478.0,83477.0,0.42156587]
[1741851785869,0.0003392,83478.0,83477.0,0.397285]
[1741851786066,0.0003392,83478.0,83477.0,0.007]
[1741851786067,0.0924182,83478.0,83477.0,0.007]
[1741851786387,0.3784022,83478.0,83477.0,0.007]
[1741851787073,0.6784022,83478.0,83477.0,0.007]
[1741851788248,0.6784022,83478.0,83477.0,0.003]
[1741851788449,0.6784022,83478.0,83457.0,0.7610893]
[1741851788450,0.0761,83461.0,83457.0,0.7610893]
[1741851788676,0.0761,83471.0,83469.0,0.01198]
[1741851788855,0.0761,83471.0,83470.0,0.251585]
[1741851789250,0.09486979,83471.0,83470.0,0.251585]
[1741851791055,0.09486979,83471.0,83470.0,0.254585]
[1741851791702,0.09486979,83471.0,83470.0,0.257585]
[1741851793484,0.01876979,83471.0,83470.0,0.257585]
[1741851793681,0.0003392,83478.0,83477.0,0.251565]
[1741851795430,0.0003392,83478.0,83477.0,0.253565]
[1741851795628,0.0003392,83478.0,83477.0,0.254565]
[1741851796864,0.0003392,83478.0,83477.0,0.252565]
[1741851797068,0.0003392,83478.0,83477.0,0.251565]
[1741851797371,0.0003392,83478.0,83477.0,0.258565]
[1741851799054,0.0003392,83478.0,83477.0,0.007]
[1741851800272,0.0123182,83478.0,83477.0,0.007]
[1741851803209,0.0123182,83478.0,83477.0,0.003]
[1741851803614,0.0123182,83478.0,83477.0,0.002]
[1741851803810,0.0123182,83478.0,83477.0,0.003]
[1741851806234,0.0003392,83478.0,83477.0,0.003]
[1741851807010,0.2519022,83478.0,83477.0,0.003]
[1741851808280,0.0003392,83478.0,83477.0,0.003]
[1741851808864,0.0123182,83478.0,83477.0,0.003]
[1741851820126,0.0003392,83478.0,83477.0,0.003]
[1741851821812,0.01910755,83478.0,83477.0,0.003]
[1741851824693,0.0003392,83478.0,83477.0,0.091579]
[1741851824946,0.0003392,83478.0,83477.0,0.014979]
[1741851825701,0.0003392,83478.0,83477.0,0.013979]
[1741851825912,0.0003392,83478.0,83477.0,0.016979]
[1741851826112,0.0003392,83478.0,83477.0,0.014979]
[1741851826532,0.0003392,83478.0,83477.0,0.018979]
[1741851830089,0.2519022,83478.0,83477.0,0.007]
[1741851831203,0.5519022,83478.0,83477.0,0.007]
[1741851831351,0.6338022,83478.0,83477.0,0.004]
[1741851832467,0.251602,83465.0,83460.0,0.1386]
[1741851833244,0.27037327,83465.0,83460.0,0.1386]
[1741851833710,0.57037327,83465.0,83457.0,0.0001693]
[1741851833923,0.69887327,83465.0,83457.0,0.0001693]
[1741851834106,0.680102,83465.0,83464.0,0.0041693]
[1741851834451,0.680102,83465.0,83464.0,0.0091693]
[1741851835725,0.680102,83465.0,83464.0,0.0051693]
[1741851835925,0.680102,83465.0,83464.0,0.0001693]
[1741851836137,0.680102,83465.0,83464.0,0.0021693]
[1741851836969,0.69887456,83465.0,83464.0,0.0051693]
[1741851837578,0.69887456,83465.0,83464.0,0.0021693]
[1741851839024,0.69887456,83465.0,83464.0,0.0031693]
[1741851839246,0.01877256,83465.0,83464.0,0.0151503]
[1741851839404,0.01877256,83465.0,83464.0,0.0131503]
[1741851840061,0.01877256,83465.0,83464.0,0.0121503]
[1741851840606,0.01877256,83465.0,83464.0,0.0011693]
[1741851841022,0.01877256,83465.0,83464.0,0.0001693]
[1741851841785,0.01877256,83465.0,83464.0,0.0121503]
[1741851842367,0.01877256,83465.0,83464.0,0.0171503]
[1741851842595,0.01877256,83465.0,83464.0,0.2567743]
[1741851842790,0.01877256,83465.0,83464.0,0.2527743]
[1741851843172,0.01877256,83465.0,83464.0,0.2547743]
[1741851843609,0.01877256,83465.0,83464.0,0.2527743]
[1741851843880,0.01877256,83465.0,83464.0,0.2547743]
[1741851844796,0.01877256,83465.0,83464.0,0.0031693]
[1741851844957,0.27037456,83465.0,83464.0,0.0021693]
[1741851845354,0.27037456,83465.0,83464.0,0.0041693]
[1741851845551,0.27037456,83465.0,83464.0,0.0021693]
[1741851845892,0.27037456,83465.0,83464.0,0.0041693]
[1741851849553,0.27071316,83465.0,83464.0,0.0041693]
[1741851850823,0.2519406,83465.0,83464.0,0.0041693]
[1741851853147,0.0123196,83465.0,83464.0,0.0041693]
[1741851853964,0.03109165,83465.0,83464.0,0.0041693]
[1741851860348,0.33109165,83465.0,83464.0,0.0041693]
[1741851860554,0.45949165,83465.0,83464.0,0.0041693]
[1741851863611,0.4407196,83465.0,83464.0,0.0041693]
[1741851864640,0.4407196,83465.0,83464.0,0.0021693]
[1741851865109,0.4407196,83465.0,83464.0,0.0001693]
[1741851865514,0.4407196,83465.0,83464.0,0.0011693]
[1741851866573,0.45949337,83465.0,83464.0,0.0011693]
[1741851869553,0.33109337,83465.0,83464.0,0.0011693]
[1741851872901,0.34563422,83465.0,83464.0,0.0011693]
[1741851873100,0.42593422,83465.0,83464.0,0.0011693]
[1741851874565,0.42593422,83465.0,83464.0,0.0001693]
[1741851884639,0.47533422,83465.0,83464.0,0.0001693]
[1741851898328,0.45656045,83465.0,83464.0,0.0001693]
[1741851899262,0.0003386,83465.0,83464.0,0.0001693]
[1741851899590,0.0123196,83465.0,83464.0,0.0001693]
[1741851899799,0.5519406,83465.0,83464.0,0.0001693]
[1741851900197,0.3123196,83465.0,83464.0,0.0001693]
[1741851900394,0.3003386,83465.0,83464.0,0.0001693]
[1741851900668,0.0003386,83465.0,83464.0,0.0908503]
[1741851900843,0.0003386,83465.0,83464.0,0.1389503]
[1741851901044,0.0191112,83465.0,83464.0,0.1389503]
[1741851901419,0.0191112,83465.0,83464.0,0.2774303]
[1741851901643,0.0191112,83465.0,83464.0,0.2654493]
[1741851902286,0.2707132,83465.0,83464.0,0.2664493]
[1741851902488,0.0191112,83465.0,83464.0,0.2664493]
[1741851902785,0.0191112,83465.0,83464.0,0.2654493]
[1741851902990,0.0310922,83465.0,83464.0,0.2694493]
[1741851904163,0.0310922,83465.0,83464.0,0.2724493]
[1741851905165,0.0191112,83465.0,83464.0,0.2724493]
[1741851906381,0.0191112,83465.0,83464.0,0.2844303]
[1741851906619,0.0191112,83465.0,83464.0,0.5240543]
[1741851915935,0.0191112,83465.0,83464.0,2.0240543]
[1741851916540,0.0003392,83478.0,83477.0,0.251565]
[1741851916782,0.0003392,83478.0,83477.0,0.378565]
[1741851918587,0.0003392,83478.0,83477.0,0.518965]
[1741851918802,0.0003392,83478.0,83477.0,0.516965]
[1741851919001,0.0003392,83478.0,83477.0,2.020965]
[1741851919122,0.0003392,83478.0,83477.0,2.026965]
[1741851920346,0.0003392,83478.0,83477.0,2.022965]
[1741851920752,0.0003392,83478.0,83477.0,2.028965]
[1741851922374,0.0003392,83478.0,83477.0,1.890565]
[1741851922575,0.0003392,83478.0,83477.0,2.028965]
[1741851922972,0.0003392,83478.0,83477.0,0.528965]
[1741851926919,0.0003392,83478.0,83477.0,2.028965]
[1741851929263,0.0003392,83478.0,83477.0,2.028925]
[1741851930350,0.0003392,83478.0,83477.0,2.022925]
[1741851930556,0.0003392,83478.0,83477.0,2.028925]
[1741851930990,0.0003392,83478.0,83477.0,2.016925]
[1741851931186,0.0003392,83478.0,83477.0,2.022925]
[1741851931386,0.0003392,83478.0,83477.0,2.028925]
[1741851938643,0.0003392,83478.0,83477.0,1.890565]
[1741851938858,0.0003392,83478.0,83477.0,2.028885]
[1741851939707,0.0003392,83478.0,83477.0,1.950385]
[1741851943438,0.0003392,83478.0,83477.0,1.901885]
[1741851943796,0.0003392,83478.0,83477.0,1.763565]
[1741851944106,0.0003392,83478.0,83477.0,1.901885]
[1741851944554,0.0003392,83478.0,83477.0,0.012]
[1741851944555,0.0123182,83478.0,83477.0,0.012]
[1741851944985,0.0243542,83478.0,83477.0,0.012]
[1741851945602,0.4064542,83478.0,83477.0,0.006]
[1741851945972,0.4064542,83478.0,83477.0,0.01]
[1741851946509,0.4064542,83478.0,83477.0,0.004]
[1741851946510,0.42099505,83478.0,83477.0,0.004]
[1741851946713,0.42099505,83478.0,83477.0,0.009]
[1741851947044,0.42099505,83478.0,83477.0,0.004]
[1741851947474,0.42099505,83478.0,83477.0,0.005]
[1741851947679,0.42099505,83478.0,83477.0,0.001]
[1741851947880,0.48646662,83478.0,83477.0,0.004]
[1741851948131,0.50989966,83478.0,83477.0,1e-06]
[1741851948277,0.01198,83466.0,83465.0,0.0001694]
[1741851948622,0.69483885,83466.0,83465.0,0.0001694]
[1741851949182,0.71361327,83466.0,83465.0,0.0001694]
[1741851949599,0.71361327,83466.0,83465.0,0.0011694]
[1741851950882,0.71361327,83466.0,83465.0,0.0001694]
[1741851951680,0.71561327,83466.0,83465.0,0.0001694]
[1741851951882,0.71561327,83466.0,83464.0,0.0001693]
[1741851951883,0.394181,83465.0,83464.0,7e-07]
[1741851952287,0.441081,83465.0,83464.0,7e-07]
[1741851954136,0.442081,83465.0,83464.0,7e-07]
[1741851956523,0.251675,83441.0,83435.0,0.011985]
[1741851957348,0.01877703,83440.0,83435.0,0.011985]
[1741851957556,0.01877703,83440.0,83436.0,0.251689]
[1741851958803,0.01877703,83440.0,83438.0,0.251682]
[1741851959430,0.01877703,83440.0,83439.0,0.092484]
[1741851959603,0.01877703,83440.0,83439.0,0.139984]
[1741851960187,0.011981,83462.0,83452.0,0.011982]
[1741851960391,0.3,83463.0,83457.0,0.251623]
[1741851960592,0.01877553,83470.0,83461.0,0.011981]
[1741851960819,0.011981,83463.0,83454.0,0.251632]
[1741851961018,0.3,83460.0,83454.0,0.251632]
[1741851961177,0.539638,83460.0,83456.0,0.239647]
[1741851961377,0.0456,83487.0,83466.0,0.01198]
[1741851961584,0.01877553,83470.0,83469.0,0.251589]
[1741851961781,0.01877553,83470.0,83463.0,0.011981]
[1741851962044,0.251592,83468.0,83459.0,0.239638]
[1741851962247,0.251599,83466.0,83459.0,0.239638]
[1741851962460,0.251599,83466.0,83453.0,0.239655]
[1741851962461,0.011981,83463.0,83454.0,0.011982]
[1741851962673,0.011981,83460.0,83455.0,0.389991]
[1741851963210,0.251617,83460.0,83455.0,0.389991]
[1741851963646,0.011981,83460.0,83455.0,0.389991]
[1741851964369,0.011981,83460.0,83456.0,0.001]
[1741851964569,0.251611,83462.0,83456.0,0.001]
[1741851965077,0.251611,83462.0,83455.0,0.393991]
[1741851965275,0.251617,83460.0,83455.0,0.14136]
[1741851965473,0.239641,83458.0,83455.0,0.14136]
[1741851965761,0.011981,83459.0,83456.0,0.004]
[1741851965985,0.011982,83457.0,83456.0,0.007]
[1741851966109,0.311982,83457.0,83456.0,0.007]
[1741851967026,0.311982,83457.0,83456.0,0.003]
[1741851967222,0.011983,83445.0,83438.0,0.011984]
[1741851967447,0.011983,83448.0,83442.0,0.011984]
[1741851967782,0.251662,83445.0,83440.0,0.251677]
[1741851968081,0.011984,83443.0,83438.0,0.011984]
[1741851969052,0.011984,83443.0,83440.0,0.011]
[1741851969371,0.251669,83443.0,83440.0,0.006]
[1741851969873,0.27043279,83447.0,83441.0,0.011984]
[1741851970213,0.239679,83445.0,83441.0,0.011984]
[1741851970409,0.251662,83445.0,83440.0,0.011984]
[1741851970838,0.011983,83445.0,83440.0,0.011984]
[1741851971035,0.27043279,83447.0,83440.0,0.011984]
[1741851971036,0.01877579,83447.0,83441.0,0.251674]
[1741851971212,0.01877579,83447.0,83445.0,0.011983]
[1741851971454,0.01877579,83447.0,83442.0,0.011984]
[1741851971654,0.01877579,83447.0,83443.0,0.239684]
[1741851972320,0.01877579,83447.0,83442.0,0.011984]
[1741851972520,0.25845079,83447.0,83442.0,0.011984]
[1741851972771,0.27043379,83447.0,83442.0,0.011984]
[1741851973146,0.27043379,83447.0,83441.0,0.257674]
[1741851973351,0.27043379,83447.0,83443.0,0.005]
[1741851973549,0.011984,83444.0,83443.0,0.005]
[1741851973981,0.011984,83444.0,83443.0,0.011]
[1741851974359,0.011984,83444.0,83443.0,0.005]
[1741851974931,0.011984,83444.0,83428.0,0.251712]
[1741851974932,0.251682,83438.0,83437.0,4.135e-05]
[1741851975619,0.551682,83438.0,83437.0,4.135e-05]
[1741851976232,0.56360915,83438.0,83437.0,4.135e-05]
[1741851976411,0.56360915,83438.0,83437.0,0.00604135]
[1741851976609,0.56360915,83438.0,83437.0,4.135e-05]